bitfinex/quotes_SOLUSD_20220129
["timestamp","ask_amount","ask_price","bid_price","bid_amount"]
[1643497574347,0.25,95.339,95.239,43.42946788]
[1643497574553,6.0,95.33,95.239,43.42946788]
[1643497574751,0.25,95.329,95.24,0.25]
[1643497575186,2.95669142,95.328,95.24,0.25]
[1643497575352,0.25,95.327,95.24,0.25]
[1643497575551,6.0,95.318,95.24,0.25]
[1643497575749,0.25,95.317,95.24,0.25]
[1643497575954,3.20669142,95.317,95.24,0.25]
[1643497576151,6.0,95.316,95.24,0.25]
[1643497576350,6.0,95.307,95.24,0.25]
[1643497576551,6.0,95.306,95.24,0.25]
[1643497576751,6.25,95.306,95.24,0.25]
[1643497576951,6.0,95.305,95.24,0.25]
[1643497577356,0.25,95.304,95.239,43.42946788]
[1643497578759,0.25,95.304,95.24,0.25]
[1643497579260,0.25,95.309,95.24,0.25]
[1643497581861,2.77879909,95.309,95.239,41.17946788]
[1643497582964,2.95669142,95.308,95.239,41.17946788]
[1643497583363,0.25,95.307,95.24,0.25]
[1643497583766,2.95669142,95.306,95.24,0.25]
[1643497584268,0.25,95.305,95.24,0.25]
[1643497585368,0.25,95.308,95.24,0.25]
[1643497585966,2.95669142,95.307,95.24,0.25]
[1643497586367,0.25,95.306,95.24,0.25]
[1643497586767,2.95669142,95.305,95.24,0.25]
[1643497586968,0.25,95.306,95.24,0.25]
[1643497587167,0.25,95.304,95.24,0.25]
[1643497587368,0.25,95.306,95.24,0.25]
[1643497588172,2.95669142,95.305,95.24,0.25]
[1643497588473,0.25,95.304,95.24,0.25]
[1643497589996,1.94141571,95.294,95.24,0.25]
[1643497590398,3.20669142,95.293,95.203,23.5642]
[1643497590598,3.20669142,95.293,95.189,1.46159558]
[1643497590599,6.0,95.283,95.189,1.46159558]
[1643497590801,15.12,95.28,95.177,0.96159558]
[1643497591003,6.0,95.27,95.177,0.96159558]
[1643497591206,6.0,95.27,95.153,22.8711]
[1643497591207,15.12,95.26,95.153,22.8711]
[1643497591396,0.25,95.259,95.154,42.11519341]
[1643497591605,1.94141571,95.249,95.154,42.11519341]
[1643497591798,15.765,95.24,95.154,42.11519341]
[1643497592247,0.25,95.239,95.154,42.11519341]
[1643497592396,0.25,95.239,95.155,0.25]
[1643497592598,0.25,95.239,95.154,42.11519341]
[1643497592998,6.0,95.23,95.154,42.11519341]
[1643497593202,2.52879909,95.229,95.154,42.11519341]
[1643497593611,0.25,95.228,95.154,42.11519341]
[1643497593799,0.25,95.228,95.155,0.25]
[1643497595301,0.25,95.228,95.138,0.1]
[1643497595507,6.0,95.219,95.117,0.1]
[1643497595703,6.0,95.219,95.104,0.1]
[1643497595909,6.0,95.219,95.085,107.19132881]
[1643497595910,6.0,95.21,95.085,107.19132881]
[1643497596103,15.12,95.2,95.095,6.0]
[1643497596303,2.19141571,95.199,95.096,137.19475938]
[1643497596508,6.0,95.189,95.106,6.0]
[1643497596804,2.52879909,95.179,95.107,0.25]
[1643497597207,0.25,95.178,95.107,0.25]
[1643497597505,3.0,95.206,95.107,104.45]
[1643497597720,15.767,95.22,95.108,0.1]
[1643497598005,0.25,95.205,95.117,6.0]
[1643497598208,0.25,95.205,95.118,122.83502582]
[1643497598408,0.25,95.205,95.119,0.1]
[1643497598806,6.0,95.208,95.119,0.1]
[1643497599206,3.84447345,95.218,95.119,0.1]
[1643497599618,6.0,95.208,95.119,0.1]
[1643497600608,3.84447345,95.218,95.119,0.1]
[1643497600808,0.25,95.217,95.119,0.1]
[1643497601011,6.0,95.208,95.119,0.1]
[1643497601415,0.25,95.207,95.119,0.1]
[1643497603415,15.12,95.23,95.129,104.2]
[1643497603629,15.12,95.28,95.139,6.0]
[1643497603811,3.0,95.265,95.15,128.02]
[1643497604012,3.0,95.265,95.16,6.0]
[1643497604212,3.0,95.265,95.161,27.65105412]
[1643497604414,3.0,95.265,95.161,27.90105412]
[1643497604713,7.55084144,95.268,95.171,6.0]
[1643497604913,0.25,95.264,95.172,104.2]
[1643497605115,0.25,95.267,95.172,110.45]
[1643497605314,0.25,95.289,95.172,110.45]
[1643497605515,0.25,95.289,95.173,6.0]
[1643497605715,0.25,95.289,95.174,104.2]
[1643497605916,0.25,95.289,95.182,6.0]
[1643497606118,0.25,95.289,95.174,104.45]
[1643497606119,3.0,95.278,95.184,6.0]
[1643497606316,0.25,95.277,95.185,18.88502582]
[1643497606522,3.0,95.276,95.195,6.0]
[1643497606917,0.25,95.275,95.196,0.25]
[1643497608117,0.25,95.275,95.186,0.25]
[1643497610119,15.76,95.27,95.186,0.25]
[1643497610321,1.61208496,95.269,95.186,0.25]
[1643497610521,3.0,95.265,95.186,0.25]
[1643497610922,0.25,95.264,95.186,0.25]
[1643497611723,2.95669142,95.263,95.186,0.25]
[1643497612126,0.25,95.262,95.186,0.25]
[1643497612724,0.25,95.262,95.185,18.63502582]
[1643497612925,3.20669142,95.262,95.185,18.63502582]
[1643497613125,0.25,95.262,95.185,18.63502582]
[1643497613928,3.0,95.263,95.185,18.63502582]
[1643497614126,3.0,95.263,95.186,0.25]
[1643497614426,1.36208496,95.269,95.186,0.25]
[1643497615026,3.0,95.261,95.186,0.25]
[1643497615425,0.25,95.26,95.186,0.25]
[1643497616328,1.36208496,95.269,95.187,2.16097443]
[1643497616530,0.25,95.26,95.185,18.63502582]
[1643497617729,0.25,95.268,95.186,0.25]
[1643497619635,0.25,95.268,95.185,18.63502582]
[1643497620234,6.0,95.27,95.185,18.63502582]
[1643497620436,0.25,95.269,95.185,18.63502582]
[1643497620836,8.20878787,95.269,95.186,0.25]
[1643497623734,7.95878787,95.269,95.186,0.25]
[1643497624134,7.95878787,95.269,95.185,18.63502582]
[1643497624337,3.0,95.268,95.185,18.63502582]
[1643497625034,0.25,95.267,95.185,18.63502582]
[1643497625638,3.0,95.268,95.186,0.25]
[1643497626337,7.95878787,95.269,95.186,0.25]
[1643497626941,7.95878787,95.269,95.186,104.45]
[1643497628339,0.25,95.268,95.186,104.45]
[1643497629841,7.95878787,95.269,95.186,104.45]
[1643497630341,7.95878787,95.269,95.187,0.25]
[1643497630542,7.95878787,95.269,95.185,18.63502582]
[1643497630742,7.95878787,95.269,95.186,0.25]
[1643497631366,6.0,95.259,95.186,0.25]
[1643497631765,0.25,95.258,95.185,18.63502582]
[1643497633166,6.0,95.259,95.185,18.63502582]
[1643497633572,2.95669142,95.258,95.185,18.63502582]
[1643497633767,1.85513219,95.247,95.185,18.63502582]
[1643497633968,3.0,95.246,95.185,18.63502582]
[1643497634270,6.0,95.237,95.185,18.63502582]
[1643497634471,0.25,95.245,95.185,18.63502582]
[1643497634472,6.0,95.236,95.185,18.63502582]
[1643497634870,6.0,95.236,95.186,0.25]
[1643497635068,0.25,95.245,95.186,0.25]
[1643497635069,0.25,95.235,95.186,0.25]
[1643497635472,6.0,95.237,95.186,0.25]
[1643497635670,1.85513219,95.247,95.186,0.25]
[1643497635872,1.85513219,95.247,95.186,2.41097443]
[1643497636071,1.85513219,95.247,95.196,6.0]
[1643497636280,15.12,95.27,95.197,0.25]
[1643497636670,0.25,95.269,95.197,0.25]
[1643497636872,3.0,95.263,95.197,0.25]
[1643497637274,7.4175851,95.262,95.197,0.25]
[1643497637575,7.4175851,95.262,95.196,0.25]
[1643497637776,7.4175851,95.262,95.186,0.25]
[1643497639416,18.12,95.28,95.187,2.16097443]
[1643497639578,6.0,95.269,95.197,6.0]
[1643497639776,6.0,95.269,95.198,0.25]
[1643497639976,3.0,95.28,95.198,8.41097443]
[1643497640174,3.0,95.308,95.198,27.11537637]
[1643497640375,7.7625179,95.307,95.199,43.94663292]
[1643497640574,7.7625179,95.307,95.209,6.0]
[1643497640774,7.7625179,95.307,95.21,104.45]
[1643497640974,7.7625179,95.307,95.21,110.45]
[1643497641175,7.7625179,95.307,95.21,112.61097443]
[1643497641377,0.25,95.306,95.211,2.16097443]
[1643497641577,0.25,95.306,95.221,6.0]
[1643497641780,0.25,95.306,95.222,18.88502582]
[1643497642692,15.12,95.33,95.223,104.2]
[1643497642986,3.0,95.323,95.233,110.2]
[1643497643380,3.0,95.323,95.234,0.25]
[1643497643580,9.58395583,95.322,95.234,0.25]
[1643497644983,0.25,95.321,95.234,0.25]
[1643497647085,9.58395583,95.322,95.234,0.25]
[1643497647285,9.58395583,95.322,95.235,2.16097443]
[1643497647683,9.58395583,95.322,95.246,27.65105412]
[1643497647882,9.58395583,95.322,95.247,0.25]
[1643497648082,9.58395583,95.322,95.256,6.0]
[1643497648284,0.25,95.321,95.257,0.25]
[1643497648487,0.25,95.321,95.257,6.25]
[1643497648883,0.25,95.321,95.257,0.25]
[1643497649485,0.25,95.321,95.247,0.25]
[1643497651384,0.25,95.321,95.221,6.0]
[1643497651783,0.25,95.321,95.222,0.25]
[1643497652186,2.95669142,95.32,95.222,38.67019092]
[1643497652387,0.25,95.319,95.222,38.67019092]
[1643497652884,2.95669142,95.318,95.222,38.67019092]
[1643497653084,2.95669142,95.318,95.223,104.2]
[1643497653385,0.25,95.317,95.224,0.25]
[1643497654287,2.95669142,95.316,95.224,0.25]
[1643497654486,0.25,95.317,95.232,6.0]
[1643497654686,0.25,95.315,95.232,6.0]
[1643497654889,0.25,95.317,95.233,0.25]
[1643497656088,0.25,95.317,95.224,0.25]
[1643497657390,3.0,95.316,95.224,0.25]
[1643497657789,0.25,95.315,95.224,0.25]
[1643497658898,0.25,95.318,95.224,0.25]
[1643497661197,0.25,95.318,95.223,0.25]
[1643497661498,3.20669142,95.318,95.223,0.25]
[1643497661720,6.0,95.309,95.223,0.25]
[1643497661892,6.25,95.308,95.223,0.25]
[1643497662096,0.25,95.308,95.223,0.25]
[1643497662495,6.25,95.308,95.223,0.25]
[1643497662693,2.95669142,95.307,95.223,0.25]
[1643497662896,6.0,95.3,95.223,0.25]
[1643497663096,6.0,95.297,95.223,0.25]
[1643497663296,0.25,95.296,95.223,0.25]
[1643497663500,6.25,95.296,95.223,0.25]
[1643497663919,0.25,95.296,95.223,0.25]
[1643497664298,3.0,95.318,95.223,0.25]
[1643497664600,3.0,95.318,95.232,6.0]
[1643497664824,3.0,95.318,95.233,0.25]
[1643497665037,0.25,95.317,95.233,0.25]
[1643497665634,0.25,95.317,95.222,38.42019092]
[1643497665635,6.0,95.308,95.222,38.42019092]
[1643497665834,0.25,95.307,95.223,0.25]
[1643497666035,6.0,95.306,95.223,104.45]
[1643497666435,0.25,95.305,95.223,104.45]
[1643497666638,3.0,95.316,95.223,104.45]
[1643497666836,0.25,95.315,95.223,104.45]
[1643497667435,3.0,95.314,95.223,104.45]
[1643497667637,3.0,95.314,95.223,0.25]
[1643497667836,0.25,95.313,95.223,0.25]
[1643497669437,3.0,95.308,95.223,0.25]
[1643497669937,0.25,95.307,95.223,0.25]
[1643497671140,3.0,95.308,95.223,0.25]
[1643497671544,3.0,95.308,95.223,104.45]
[1643497671741,3.0,95.308,95.223,0.25]
[1643497672141,0.25,95.307,95.223,0.25]
[1643497673347,0.25,95.309,95.223,0.25]
[1643497673744,0.25,95.309,95.222,38.42019092]
[1643497674577,0.25,95.309,95.223,104.2]
[1643497674745,0.25,95.309,95.222,38.42019092]
[1643497674949,2.95669142,95.308,95.222,38.42019092]
[1643497675145,2.95669142,95.308,95.204,46.3989]
[1643497675146,6.0,95.3,95.204,46.3989]
[1643497675347,15.12,95.29,95.196,2.89132881]
[1643497675546,6.0,95.28,95.188,2.89132881]
[1643497675746,0.25,95.279,95.184,2.89132881]
[1643497676070,0.25,95.279,95.185,47.5527044]
[1643497676071,6.25,95.279,95.185,47.5527044]
[1643497676270,6.25,95.279,95.185,49.70313579]
[1643497676470,6.0,95.27,95.186,110.99822577]
[1643497676870,6.25,95.269,95.187,6.79822577]
[1643497677070,6.0,95.259,95.188,108.84779438]
[1643497677370,6.0,95.259,95.189,4.64779438]
[1643497677769,0.25,95.269,95.19,0.25]
[1643497677972,0.25,95.269,95.191,4.64779438]
[1643497678171,0.25,95.278,95.191,4.64779438]
[1643497678370,0.25,95.278,95.192,0.25]
[1643497678371,21.12,95.27,95.192,0.25]
[1643497678670,0.25,95.278,95.192,0.25]
[1643497679076,30.878,95.28,95.192,0.25]
[1643497679273,30.878,95.28,95.186,0.25]
[1643497679472,30.878,95.28,95.187,4.64496878]
[1643497680076,30.878,95.28,95.185,42.90491002]
[1643497680077,6.0,95.27,95.185,42.90491002]
[1643497680274,6.0,95.27,95.186,104.2]
[1643497680476,30.878,95.28,95.196,6.0]
[1643497680877,30.878,95.28,95.188,2.15043139]
[1643497681275,0.25,95.279,95.197,2.15043139]
[1643497681475,30.878,95.28,95.197,2.15043139]
[1643497681677,30.878,95.28,95.198,0.25]
[1643497682079,30.878,95.28,95.185,42.90491002]
[1643497682080,30.878,95.28,95.199,2.15043139]
[1643497682279,6.0,95.27,95.2,3.38116992]
[1643497682879,0.25,95.269,95.2,3.38116992]
[1643497683083,0.25,95.279,95.2,3.38116992]
[1643497683287,6.0,95.27,95.2,3.38116992]
[1643497683481,0.25,95.279,95.201,0.25]
[1643497683687,0.25,95.269,95.201,0.25]
[1643497683888,0.25,95.279,95.201,0.25]
[1643497684382,0.25,95.279,95.2,3.38116992]
[1643497684583,6.0,95.27,95.201,0.25]
[1643497684782,0.25,95.269,95.201,0.25]
[1643497685982,0.25,95.279,95.201,0.25]
[1643497689645,0.25,95.279,95.175,104.2]
[1643497689789,125.96,95.27,95.164,2.89132881]
[1643497689989,6.0,95.268,95.153,104.2]
[1643497690189,104.2,95.267,95.152,2.89132881]
[1643497690488,104.2,95.258,95.155,2.89132881]
[1643497690694,104.2,95.256,95.173,6.0]
[1643497690889,6.0,95.248,95.173,6.0]
[1643497691089,5.5,95.246,95.164,39.65662954]
[1643497691290,0.25,95.245,95.164,39.65662954]
[1643497692092,15.764,95.24,95.164,39.65662954]
[1643497692295,0.25,95.239,95.164,39.65662954]
[1643497693297,6.0,95.23,95.165,0.25]
[1643497693496,0.25,95.239,95.165,0.25]
[1643497693696,0.25,95.229,95.165,0.25]
[1643497693894,0.25,95.239,95.165,0.25]
[1643497694897,0.25,95.246,95.165,0.25]
[1643497695295,24.5222,95.247,95.165,0.25]
[1643497696397,24.5222,95.247,95.165,104.45]
[1643497696698,24.5222,95.247,95.175,6.0]
[1643497696898,24.2307,95.279,95.176,0.25]
[1643497697106,24.2307,95.279,95.176,6.25]
[1643497697296,0.25,95.254,95.176,6.25]
[1643497697705,23.6416,95.255,95.176,6.25]
[1643497697897,23.6416,95.255,95.177,104.2]
[1643497698140,24.2307,95.279,95.177,122.31483015]
[1643497698299,3.0,95.283,95.188,104.2]
[1643497698498,3.0,95.283,95.198,6.0]
[1643497698895,3.0,95.283,95.199,6.25]
[1643497699100,3.0,95.283,95.199,0.25]
[1643497699298,0.25,95.282,95.199,0.25]
[1643497699497,6.0,95.273,95.189,6.6294504]
[1643497699698,15.12,95.26,95.189,6.6294504]
[1643497699898,104.45,95.259,95.189,6.6294504]
[1643497700101,15.764,95.24,95.144,2.89132881]
[1643497700301,0.25,95.239,95.144,2.89132881]
[1643497700499,6.0,95.23,95.133,0.1]
[1643497700698,24.809,95.229,95.133,0.1]
[1643497700901,25.059,95.229,95.133,108.93533765]
[1643497701203,25.059,95.229,95.144,104.2]
[1643497701401,25.059,95.229,95.145,0.25]
[1643497703329,2.95669142,95.228,95.144,104.2]
[1643497703731,0.25,95.227,95.144,104.2]
[1643497704728,0.25,95.227,95.145,0.25]
[1643497704926,0.25,95.228,95.145,0.25]
[1643497705928,24.809,95.229,95.145,0.25]
[1643497707230,24.809,95.229,95.143,0.25]
[1643497707429,0.25,95.228,95.143,0.25]
[1643497707627,6.0,95.219,95.135,0.35]
[1643497707828,0.25,95.218,95.136,4.62109829]
[1643497708028,6.0,95.219,95.137,0.25]
[1643497708228,0.25,95.218,95.137,0.25]
[1643497708434,0.25,95.218,95.138,4.62109829]
[1643497708931,0.25,95.218,95.139,0.25]
[1643497709431,0.25,95.218,95.14,4.62109829]
[1643497709834,0.25,95.218,95.141,0.25]
[1643497710236,6.0,95.219,95.141,0.25]
[1643497710634,6.0,95.219,95.142,4.62116036]
[1643497710870,6.0,95.219,95.143,0.25]
[1643497711136,0.25,95.218,95.16,11.99744659]
[1643497711339,0.25,95.218,95.161,0.25]
[1643497712938,6.0,95.219,95.161,0.25]
[1643497713140,15.12,95.25,95.162,1.45798116]
[1643497713337,23.6554,95.255,95.171,1.45798116]
[1643497713540,23.6554,95.255,95.166,1.45798116]
[1643497713740,104.2,95.254,95.167,1.45798116]
[1643497713939,6.0,95.237,95.167,1.70798116]
[1643497714141,6.0,95.237,95.167,1.45798116]
[1643497714343,0.25,95.236,95.168,0.25]
[1643497715241,0.25,95.236,95.167,0.25]
[1643497715441,6.0,95.23,95.167,0.25]
[1643497715839,0.25,95.229,95.167,0.25]
[1643497716239,0.25,95.229,95.168,1.45798116]
[1643497716642,0.25,95.229,95.169,0.25]
[1643497717240,0.25,95.234,95.169,0.25]
[1643497717641,0.25,95.234,95.165,1.45798116]
[1643497717849,0.25,95.234,95.16,11.99744659]
[1643497718046,0.25,95.234,95.161,1.45798116]
[1643497718743,0.25,95.234,95.162,1.45798116]
[1643497719149,6.0,95.225,95.163,0.25]
[1643497719346,0.25,95.224,95.164,1.45798116]
[1643497719746,0.25,95.224,95.165,0.25]
[1643497719949,0.25,95.224,95.167,1.45798116]
[1643497720149,0.25,95.224,95.163,1.45798116]
[1643497720348,0.25,95.224,95.155,1.45798116]
[1643497720349,15.12,95.22,95.155,1.45798116]
[1643497720624,6.0,95.21,95.098,16.9592746]
[1643497720759,6.0,95.21,95.076,23.2601]
[1643497720760,15.12,95.2,95.076,23.2601]
[1643497720951,46.8773,95.199,95.073,4.31956399]
[1643497721149,15.776,95.17,95.077,4.47292657]
[1643497721454,15.12,95.16,95.051,4.31956399]
[1643497721654,3.0,95.143,95.051,4.31956399]
[1643497721852,15.12,95.13,95.034,2.92322579]
[1643497722052,6.0,95.12,95.009,43.83881609]
[1643497722254,15.792,95.09,94.962,2.92322579]
[1643497722448,15.12,95.08,94.949,2.92322579]
[1643497722692,21.12,95.08,94.931,2.92322579]
[1643497722847,29.5146,95.079,94.965,401.40504371]
[1643497723051,6.0,95.07,94.965,401.40504371]
[1643497723250,15.12,95.06,94.966,43.88420846]
[1643497723651,6.0,95.05,94.966,43.88420846]
[1643497723850,0.25,95.049,94.966,43.88420846]
[1643497724051,6.25,95.049,94.966,43.88420846]
[1643497724652,6.0,95.049,94.966,43.88420846]
[1643497724851,6.0,95.049,94.967,0.25]
[1643497729454,15.12,95.05,94.967,0.25]
[1643497731856,15.12,95.05,94.976,6.0]
[1643497732356,15.12,95.05,94.977,0.25]
[1643497732557,15.12,95.05,94.977,104.45]
[1643497732956,15.12,95.05,94.988,31.76800902]
[1643497733357,15.12,95.05,94.989,0.25]
[1643497733756,15.12,95.05,94.988,31.76800902]
[1643497735158,15.12,95.05,94.989,0.25]
[1643497739769,0.25,95.049,94.97,6.0]
[1643497739963,0.25,95.049,94.971,104.2]
[1643497740163,0.25,95.049,94.971,110.2]
[1643497740365,0.25,95.049,94.971,104.2]
[1643497740565,0.25,95.049,94.981,6.0]
[1643497740763,0.25,95.049,94.981,110.2]
[1643497740999,15.12,95.05,94.982,6.0]
[1643497741164,2.86408306,95.199,94.985,62.54]
[1643497741364,94.62528388,95.203,95.055,2.15831419]
[1643497741567,94.62528388,95.203,95.054,15.12]
[1643497741568,15.9764,95.284,95.08,104.2]
[1643497741763,52.535,95.29,95.102,1.68]
[1643497741966,15.12,95.31,95.111,104.2]
[1643497742166,15.12,95.32,95.12,15.12]
[1643497742368,15.12,95.31,95.14,15.759]
[1643497742568,24.3959,95.309,95.15,6.0]
[1643497742767,24.3959,95.309,95.151,0.25]
[1643497742969,5.09306851,95.299,95.151,28.06266861]
[1643497743169,15.12,95.29,95.152,21.81266861]
[1643497743469,15.12,95.29,95.153,0.25]
[1643497743691,15.12,95.29,95.15,15.12]
[1643497743692,6.0,95.28,95.15,15.12]
[1643497743892,6.0,95.28,95.153,0.25]
[1643497744197,6.0,95.279,95.16,6.0]
[1643497744401,15.76,95.27,95.161,29.10026899]
[1643497744593,6.38645056,95.239,95.171,6.0]
[1643497744793,0.25,95.238,95.172,0.25]
[1643497744997,0.25,95.238,95.164,6.0]
[1643497745420,0.25,95.238,95.165,0.25]
[1643497746194,0.25,95.238,95.165,6.25]
[1643497746396,6.38645056,95.239,95.165,0.25]
[1643497746797,6.38645056,95.239,95.164,6.0]
[1643497746998,6.38645056,95.239,95.17,6.0]
[1643497747399,6.38645056,95.239,95.165,0.25]
[1643497747600,6.38645056,95.239,95.171,10.52]
[1643497747797,6.38645056,95.239,95.172,0.25]
[1643497748202,6.38645056,95.239,95.171,10.52]
[1643497748398,6.38645056,95.239,95.172,0.25]
[1643497748800,0.25,95.238,95.172,0.25]
[1643497750001,6.0,95.229,95.15,15.12]
[1643497750204,6.0,95.229,95.1,15.766]
[1643497750205,6.0,95.229,95.14,15.12]
[1643497750400,6.0,95.229,95.09,188.95]
[1643497750401,6.0,95.22,95.13,15.12]
[1643497750602,6.0,95.218,95.13,15.12]
[1643497750802,75.79649142,95.243,95.13,15.12]
[1643497751002,75.79649142,95.243,95.131,35.07287113]
[1643497751202,3.20669142,95.242,95.131,35.07287113]
[1643497751405,3.20669142,95.242,95.141,6.0]
[1643497751611,2.95669142,95.241,95.141,6.0]
[1643497751808,2.95669142,95.241,95.142,0.25]
[1643497751809,0.25,95.24,95.142,0.25]
[1643497752005,15.766,95.23,95.142,0.25]
[1643497752407,107.40669142,95.229,95.141,6.0]
[1643497752812,2.95669142,95.228,95.141,6.0]
[1643497753211,0.25,95.227,95.141,6.0]
[1643497753609,2.95669142,95.226,95.141,6.0]
[1643497753806,0.25,95.225,95.142,0.25]
[1643497754005,15.769,95.22,95.142,0.25]
[1643497754205,104.2,95.219,95.142,0.25]
[1643497754407,0.25,95.219,95.142,0.25]
[1643497755411,15.77,95.21,95.142,0.25]
[1643497755809,0.25,95.209,95.142,0.25]
[1643497757612,0.25,95.209,95.141,0.25]
[1643497758215,0.25,95.209,95.141,42.71512842]
[1643497758615,15.766,95.23,95.141,42.71512842]
[1643497758814,0.25,95.229,95.141,42.71512842]
[1643497760417,0.25,95.229,95.141,42.46512842]
[1643497760618,0.25,95.229,95.142,0.25]
[1643497761618,15.769,95.21,95.1,15.12]
[1643497761818,104.45,95.209,95.1,15.12]
[1643497762018,3.20669142,95.209,95.11,6.0]
[1643497762422,2.95669142,95.208,95.11,6.0]
[1643497762619,2.95669142,95.208,95.101,110.2]
[1643497762821,15.771,95.2,95.111,34.48303122]
[1643497763018,0.25,95.207,95.121,6.0]
[1643497763221,0.25,95.199,95.121,6.0]
[1643497763421,0.25,95.207,95.121,6.0]
[1643497763625,0.25,95.207,95.122,0.25]
[1643497764221,3.0,95.216,95.122,0.25]
[1643497764453,0.25,95.218,95.122,0.25]
[1643497764621,15.769,95.21,95.122,0.25]
[1643497764822,3.0,95.231,95.13,15.12]
[1643497765123,23.4487,95.259,95.14,6.0]
[1643497765321,0.25,95.242,95.141,104.45]
[1643497765524,3.0,95.265,95.151,6.0]
[1643497765728,3.0,95.265,95.16,15.12]
[1643497765944,24.4143,95.288,95.16,15.12]
[1643497766222,24.4143,95.288,95.171,23.21352322]
[1643497766223,6.0,95.278,95.171,23.21352322]
[1643497766426,6.0,95.278,95.18,15.12]
[1643497766624,6.0,95.278,95.19,6.0]
[1643497766822,0.25,95.277,95.191,34.73303122]
[1643497767023,0.25,95.277,95.201,6.0]
[1643497767423,0.25,95.277,95.202,0.25]
[1643497767824,6.0,95.293,95.202,0.25]
[1643497769023,6.0,95.288,95.202,0.25]
[1643497769322,0.25,95.287,95.202,0.25]
[1643497770254,3.0,95.325,95.211,23.21352322]
[1643497770450,52.501,95.35,95.211,23.21352322]
[1643497770653,2.95669142,95.331,95.221,6.0]
[1643497770856,2.95669142,95.331,95.222,0.25]
[1643497771053,2.95669142,95.331,95.231,34.48303122]
[1643497771251,2.95669142,95.331,95.232,0.25]
[1643497771451,2.95669142,95.331,95.241,6.0]
[1643497771651,0.25,95.33,95.232,0.25]
[1643497771852,0.25,95.33,95.241,6.0]
[1643497772052,16.001,95.33,95.241,6.0]
[1643497772252,16.001,95.33,95.242,0.25]
[1643497773253,16.001,95.33,95.232,0.25]
[1643497774054,16.001,95.33,95.241,6.0]
[1643497774356,16.001,95.33,95.242,0.25]
[1643497775456,15.751,95.33,95.242,0.25]
[1643497776260,15.752,95.32,95.231,34.48303122]
[1643497776458,21.752,95.32,95.231,34.48303122]
[1643497776660,0.25,95.319,95.231,34.48303122]
[1643497777060,104.45,95.319,95.231,34.48303122]
[1643497777459,104.45,95.319,95.22,15.12]
[1643497777662,15.753,95.31,95.23,6.0]
[1643497777959,0.25,95.309,95.23,6.0]
[1643497778562,0.25,95.309,95.231,35.94950469]
[1643497778761,0.25,95.309,95.231,0.25]